bitfinex/quotes_SOLUSD_20250609
["timestamp","ask_amount","ask_price","bid_price","bid_amount"]
[1749442768523,6.58559704,151.85,151.82,8.01136166]
[1749442769037,26.66101052,151.84,151.78,0.14216157]
[1749442769199,14.5976753,151.83,151.79,8.01136166]
[1749442769597,18.64964886,151.82,151.79,8.01136166]
[1749442770103,26.66101052,151.82,151.78,8.01136166]
[1749442770299,8.01136166,151.81,151.77,8.01136166]
[1749442771201,19.09250515,151.81,151.77,12.50532381]
[1749442773033,19.09250515,151.81,151.76,1.6104]
[1749442773233,24.01211966,151.81,151.77,12.50532381]
[1749442773528,19.09250515,151.81,151.77,12.50532381]
[1749442773833,24.01211966,151.81,151.77,12.50532381]
[1749442775339,24.01210818,151.81,151.77,12.50532381]
[1749442775511,19.09250515,151.81,151.77,12.50532381]
[1749442775837,24.01210818,151.81,151.77,12.50532381]
[1749442778412,24.01210818,151.81,151.75,10.2]
[1749442778413,12.50532381,151.78,151.75,10.2]
[1749442778713,12.50532381,151.78,151.74,76.32793631]
[1749442778914,17.42492684,151.79,151.75,12.50532381]
[1749442779739,17.42492684,151.79,151.74,63.8226125]
[1749442779954,19.09380714,151.78,151.74,76.32793631]
[1749442780123,6.58848333,151.78,151.75,12.50532381]
[1749442782417,19.09380714,151.78,151.74,63.8226125]
[1749442782635,19.09380714,151.78,151.75,12.50532381]
[1749442783443,19.09380714,151.78,151.74,76.32793631]
[1749442787922,6.58848333,151.78,151.75,12.50532381]
[1749442791461,19.51618117,151.79,151.75,8.00488086]
[1749442792236,14.59293013,151.79,151.75,8.00488086]
[1749442792447,19.51665032,151.79,151.75,8.00488086]
[1749442793358,14.59293013,151.79,151.75,8.00488086]
[1749442796567,6.58804927,151.79,151.75,8.00488086]
[1749442796868,14.59293013,151.79,151.75,8.00488086]
[1749442797361,19.51701473,151.79,151.75,8.00488086]
[1749442799359,8.00488086,151.76,151.74,37.8226125]
[1749442799534,8.00488086,151.75,151.74,37.8226125]
[1749442799858,8.00488086,151.75,151.69,40.04216157]
[1749442800049,8.00488086,151.73,151.68,1.543]
[1749442800239,8.00488086,151.72,151.68,49.44788086]
[1749442801244,14.59613537,151.72,151.68,49.44788086]
[1749442801451,14.59613537,151.72,151.68,1.543]
[1749442801452,8.00488086,151.71,151.68,1.543]
[1749442801765,19.52017029,151.73,151.69,8.00488086]
[1749442802559,8.00488086,151.72,151.68,9.54788086]
[1749442802749,14.59562499,151.73,151.69,8.00488086]
[1749442803448,8.00488086,151.72,151.68,9.54788086]
[1749442803684,8.00488086,151.72,151.68,8.00488086]
[1749442805035,6.5915233,151.71,151.68,8.00488086]
[1749442805856,14.59612182,151.72,151.68,8.00488086]
[1749442806166,6.59124096,151.72,151.69,8.00488086]
[1749442809460,14.59612182,151.72,151.68,8.00488086]
[1749442810658,14.59612182,151.72,151.67,10.2]
[1749442810659,8.00488086,151.71,151.67,18.20488086]
[1749442810845,8.00488086,151.71,151.67,8.00488086]
[1749442811737,14.59681996,151.71,151.67,8.00488086]
[1749442813567,6.5919391,151.71,151.68,8.00488086]
[1749442813744,8.00488086,151.72,151.68,8.00488086]
[1749442813745,14.59613665,151.72,151.68,8.00488086]
[1749442815564,14.59613665,151.72,151.67,8.00488086]
[1749442815755,8.00488086,151.71,151.67,8.00488086]
[1749442816761,14.59677954,151.71,151.67,8.00488086]
[1749442818569,8.00488086,151.72,151.68,8.00488086]
[1749442818950,8.00488086,151.7,151.66,26.0]
[1749442819876,8.00488086,151.69,151.65,8.00488086]
[1749442820381,8.00488086,151.7,151.66,8.00488086]
[1749442820582,14.59707919,151.7,151.66,8.00488086]
[1749442821468,14.59652584,151.71,151.67,8.00488086]
[1749442821671,6.59164498,151.71,151.67,8.00488086]
[1749442822168,26.65452972,151.72,151.68,8.00488086]
[1749442822355,26.65452972,151.74,151.7,8.00488086]
[1749442822754,33.24483417,151.74,151.7,8.00488086]
[1749442822956,25.76168086,151.77,151.73,8.00488086]
[1749442823172,18.64964886,151.76,151.73,8.00488086]
[1749442823373,31.16195435,151.76,151.72,12.51230549]
[1749442824267,37.75146236,151.76,151.72,12.51230549]
[1749442824656,12.51230549,151.75,151.71,12.51230549]
[1749442824859,37.75146236,151.76,151.71,12.51230549]
[1749442825042,12.51230549,151.75,151.71,12.51230549]
[1749442825970,19.10249603,151.75,151.71,12.51230549]
[1749442826370,6.59019054,151.75,151.71,12.51230549]
[1749442827959,19.10249603,151.75,151.71,12.51230549]
[1749442828161,31.16195435,151.74,151.67,6.3321]
[1749442828363,12.51230549,151.73,151.69,12.51230549]
[1749442829352,6.59108884,151.72,151.68,12.51230549]
[1749442829980,19.10339433,151.72,151.68,12.51230549]
[1749442831074,12.51230549,151.71,151.66,26.0]
[1749442831257,12.51230549,151.71,151.66,38.51230549]
[1749442833175,6.59195781,151.7,151.66,38.51230549]
[1749442833380,19.10400482,151.71,151.66,38.51230549]
[1749442835592,19.10400482,151.71,151.66,26.0]
[1749442835790,19.10400482,151.71,151.66,38.51230549]
[1749442835956,19.10400482,151.71,151.66,45.10597672]
[1749442836378,15.11631303,151.73,151.68,12.51230549]
[1749442836579,22.71230549,151.73,151.68,12.51230549]
[1749442837470,12.51230549,151.72,151.68,12.51230549]
[1749442837680,12.51230549,151.71,151.67,12.51230549]
[1749442837858,12.51230549,151.71,151.66,38.51230549]
[1749442838577,12.51230549,151.71,151.66,12.51230549]
[1749442838990,12.51230549,151.7,151.66,12.51230549]
[1749442839586,19.10445087,151.7,151.66,12.51230549]
[1749442841666,6.59214538,151.7,151.66,12.51230549]
[1749442842168,6.59214538,151.7,151.67,12.51230549]
[1749442843096,24.0306932,151.71,151.67,12.51230549]
[1749442843291,11.51838771,151.71,151.68,12.51230549]
[1749442843474,11.52102109,151.71,151.68,12.51230549]
[1749442843793,6.59160595,151.71,151.68,12.51230549]
[1749442846576,37.7531308,151.72,151.68,12.51230549]
[1749442846785,4.93067363,151.71,151.68,12.51230549]
[1749442846996,37.7531308,151.72,151.68,12.51230549]
[1749442847179,4.93058034,151.71,151.68,12.51230549]
[1749442847379,37.7531308,151.72,151.68,12.51230549]
[1749442847687,4.93072731,151.71,151.68,12.51230549]
[1749442847997,37.7531308,151.72,151.68,12.51230549]
[1749442849273,12.51230549,151.71,151.67,12.51230549]
[1749442851390,12.51230549,151.7,151.66,12.51230549]
[1749442851617,17.44320848,151.7,151.66,12.51230549]
[1749442851815,12.51230549,151.7,151.66,12.51230549]
[1749442852414,17.44320848,151.7,151.66,12.51230549]
[1749442852713,17.44325919,151.7,151.66,12.51230549]
[1749442853298,12.51230549,151.7,151.66,12.51230549]
[1749442853616,17.44328384,151.7,151.66,12.51230549]
[1749442853827,17.44327759,151.7,151.66,12.51230549]
[1749442854619,24.03531083,151.7,151.66,12.51230549]
[1749442854921,19.10433873,151.7,151.66,12.51230549]
[1749442855096,24.03531083,151.7,151.66,12.51230549]
[1749442855419,19.10433873,151.7,151.66,12.51230549]
[1749442856505,24.03529421,151.7,151.66,12.51230549]
[1749442856706,19.10433873,151.7,151.66,12.51230549]
[1749442857823,24.03456522,151.71,151.67,12.51230549]
[1749442858003,19.10394552,151.71,151.67,12.51230549]
[1749442860510,6.59164003,151.71,151.67,12.51230549]
[1749442860713,19.10394552,151.71,151.67,12.51230549]
[1749442862565,19.10394552,151.71,151.66,12.51230549]
[1749442862839,11.52276455,151.7,151.67,12.51230549]
[1749442863021,6.59218151,151.7,151.67,12.51230549]
[1749442863219,19.10401294,151.71,151.67,12.51230549]
[1749442864414,25.24088396,151.72,151.68,12.51230549]
[1749442865232,25.24088396,151.72,151.68,8.01176672]
[1749442865610,33.25265068,151.72,151.68,8.01176672]
[1749442867239,37.76078653,151.72,151.67,12.51990257]
[1749442868034,19.11143777,151.71,151.67,12.51990257]
[1749442868434,12.51990257,151.71,151.67,19.1131448]
[1749442868815,37.76081877,151.72,151.67,19.1131448]
[1749442869010,4.93154373,151.71,151.65,6.73599416]
[1749442869234,12.51990257,151.71,151.67,12.51990257]
[1749442869441,4.93305435,151.7,151.66,12.51990257]
[1749442869747,12.51990257,151.71,151.66,12.51990257]
[1749442870065,4.93306031,151.7,151.66,12.51990257]
[1749442870231,19.11179737,151.71,151.66,12.51990257]
[1749442870417,4.93329989,151.7,151.66,12.51990257]
[1749442870617,12.51990257,151.69,151.65,12.51990257]
[1749442871143,31.16955143,151.7,151.65,12.51990257]
[1749442871526,4.93625934,151.69,151.65,12.51990257]
[1749442871726,31.16955143,151.7,151.65,12.51990257]
[1749442871925,31.16955143,151.7,151.65,19.11400212]
[1749442872142,31.16955143,151.7,151.66,12.51990257]
[1749442872747,4.93826769,151.69,151.66,12.51990257]
[1749442872945,37.76156667,151.7,151.66,12.51990257]
[1749442873327,25.2416641,151.7,151.66,12.51990257]
[1749442873527,18.64964886,151.7,151.67,12.51990257]
[1749442875043,39.92,151.72,151.68,12.51990257]
[1749442875345,4.93921882,151.71,151.68,12.51990257]
[1749442875527,4.93921882,151.7,151.68,12.51990257]
[1749442875840,39.92,151.72,151.68,12.51990257]
[1749442876046,4.93944205,151.71,151.68,12.51990257]
[1749442876354,4.93944205,151.7,151.68,12.51990257]
[1749442876649,18.64964886,151.72,151.68,19.11264577]
[1749442876944,4.93936887,151.71,151.68,19.11264577]
[1749442877147,10.2,151.73,151.7,12.51990257]
[1749442877348,4.93809985,151.72,151.71,12.51990257]
[1749442877533,18.64964886,151.74,151.71,12.51990257]
[1749442877843,4.93783267,151.73,151.72,12.51990257]
[1749442878029,4.93783267,151.73,151.71,12.51990257]
[1749442878232,6.73233946,151.75,151.71,12.51990257]
[1749442878439,23.58623797,151.74,151.71,12.51990257]
[1749442878645,4.93658911,151.73,151.71,12.51990257]
[1749442878957,18.64964886,151.74,151.71,12.51990257]
[1749442879251,4.93672882,151.73,151.71,12.51990257]
[1749442879421,18.64964886,151.74,151.71,12.51990257]
[1749442879731,4.93605659,151.73,151.71,12.51990257]
[1749442880046,25.23988484,151.74,151.71,12.51990257]
[1749442880346,4.93605659,151.73,151.71,12.51990257]
[1749442880651,25.23988484,151.74,151.71,12.51990257]
[1749442880946,4.93557763,151.73,151.71,12.51990257]
[1749442881115,25.23988484,151.74,151.71,12.51990257]
[1749442881320,4.93557763,151.73,151.71,12.51990257]
[1749442881525,25.23988484,151.74,151.71,12.51990257]
[1749442881755,4.9349661,151.73,151.71,12.51990257]
[1749442881932,25.23988484,151.74,151.71,12.51990257]
[1749442882139,4.9349661,151.73,151.71,12.51990257]
[1749442882441,25.23988484,151.74,151.71,12.51990257]
[1749442882627,4.93446116,151.73,151.71,12.51990257]
[1749442882827,25.23988484,151.74,151.71,12.51990257]
[1749442883037,4.93446116,151.73,151.71,12.51990257]
[1749442883236,25.23988484,151.74,151.71,12.51990257]
[1749442883437,4.93405073,151.73,151.69,6.5922202]
[1749442883646,12.51990257,151.72,151.67,6.59326168]
[1749442883950,12.51990257,151.72,151.68,12.51990257]
[1749442884627,4.93468696,151.71,151.68,12.51990257]
[1749442884828,12.51990257,151.72,151.68,12.51990257]
[1749442885130,4.93475814,151.71,151.68,12.51990257]
[1749442885326,19.11114077,151.72,151.68,12.51990257]
[1749442885543,4.93491304,151.71,151.68,12.51990257]
[1749442885833,31.16955143,151.71,151.67,12.51990257]
[1749442887263,37.76141698,151.71,151.67,12.51990257]
[1749442888956,12.51990257,151.7,151.66,12.51990257]
[1749442890365,19.11289478,151.68,151.64,12.51990257]
[1749442890747,12.51990257,151.67,151.63,12.51990257]
[1749442890951,10.06418179,151.67,151.63,12.51990257]
[1749442893268,10.06418179,151.67,151.64,12.51990257]
[1749442895366,10.06418179,151.67,151.62,16.79537119]
[1749442895678,10.06418179,151.67,151.64,12.51990257]
[1749442896651,24.04234601,151.68,151.64,12.51990257]
[1749442896957,19.11289478,151.68,151.64,12.51990257]
[1749442897175,24.04234601,151.68,151.64,12.51990257]
[1749442897473,19.11289478,151.68,151.64,12.51990257]
[1749442897659,24.04234601,151.68,151.64,12.51990257]
[1749442897957,19.11289478,151.68,151.64,12.51990257]
[1749442898157,24.04234601,151.68,151.64,12.51990257]
[1749442898374,19.11289478,151.68,151.64,12.51990257]
[1749442898681,24.04234601,151.68,151.64,12.51990257]
[1749442898847,19.11289478,151.68,151.64,12.51990257]
[1749442899050,24.04234601,151.68,151.64,12.51990257]
[1749442899249,19.11289478,151.68,151.64,12.51990257]
[1749442899450,24.04234601,151.68,151.64,12.51990257]
[1749442899650,19.11289478,151.68,151.64,12.51990257]
[1749442899863,24.04234601,151.68,151.64,12.51990257]
[1749442900149,19.11289478,151.68,151.64,12.51990257]
[1749442900368,24.04234601,151.68,151.64,12.51990257]
[1749442900569,19.11289478,151.68,151.64,12.51990257]
[1749442900767,24.04234601,151.68,151.64,12.51990257]
[1749442901076,6.59299221,151.68,151.64,12.51990257]
[1749442901272,19.11289478,151.68,151.64,12.51990257]
[1749442905075,12.51990257,151.67,151.64,12.51990257]
[1749442906848,19.11329474,151.67,151.64,12.51990257]
[1749442907374,25.24265692,151.68,151.64,12.51990257]
[1749442907599,12.51990257,151.67,151.64,12.51990257]
[1749442909570,19.11320867,151.67,151.64,12.51990257]
[1749442911076,19.11320867,151.67,151.6,96.73547922]
[1749442911077,12.51990257,151.65,151.61,12.51990257]
[1749442911372,12.51990257,151.65,151.61,8.020269]
[1749442911373,8.020269,151.65,151.61,8.020269]
[1749442911878,14.61459389,151.65,151.61,8.020269]
[1749442913401,19.12575466,151.65,151.61,12.53142977]
[1749442915386,12.53142977,151.64,151.6,1.6627]
[1749442915565,12.53142977,151.63,151.59,22.73142977]
[1749442915756,12.53142977,151.63,151.58,12.53142977]
[1749442915955,28.00598229,151.65,151.58,12.53142977]
[1749442915956,12.53142977,151.62,151.58,12.53142977]
[1749442916797,12.53142977,151.6,151.56,14.09762977]
[1749442917097,12.53142977,151.59,151.55,22.73142977]
[1749442917299,12.53142977,151.59,151.55,12.53142977]
[1749442917598,19.12775255,151.6,151.56,12.53142977]
[1749442918195,12.53142977,151.6,151.56,12.53142977]
[1749442919804,19.1277463,151.6,151.56,12.53142977]
[1749442923379,12.53142977,151.6,151.56,12.53142977]
[1749442924912,19.12775824,151.6,151.56,12.53142977]
[1749442928120,12.53142977,151.6,151.57,12.53142977]
[1749442929094,19.12786358,151.6,151.57,12.53142977]
[1749442929294,6.59643381,151.6,151.57,12.53142977]
[1749442933328,18.64964886,151.57,151.52,14.09762977]
[1749442933626,19.12972431,151.56,151.52,12.53142977]
[1749442933791,19.12972431,151.56,151.5,6.6004824]
[1749442933792,12.53142977,151.55,151.51,12.53142977]
[1749442934021,12.53142977,151.55,151.5,6.6004824]
[1749442934022,12.53142977,151.53,151.49,12.53142977]
[1749442934249,31.18107863,151.54,151.5,12.53142977]
[1749442934758,31.18107863,151.54,151.48,37.772]
[1749442934921,12.53142977,151.53,151.49,12.53142977]
[1749442935123,12.53142977,151.53,151.49,38.53142977]
[1749442935554,12.53142977,151.52,151.46,6.60240327]
[1749442935858,12.53142977,151.52,151.48,12.53142977]
[1749442936517,12.53142977,151.52,151.46,6.60240327]
[1749442936719,12.53142977,151.51,151.47,12.53142977]
[1749442936950,12.53142977,151.51,151.45,8.17472326]
[1749442936951,12.53142977,151.5,151.46,12.53142977]
[1749442937152,19.13242395,151.5,151.44,42.80321712]
[1749442937366,19.13242395,151.5,151.46,12.53142977]
[1749442937569,31.18107863,151.49,151.45,12.53142977]
[1749442937724,31.18107863,151.49,151.44,26.0]
[1749442937725,12.53142977,151.48,151.44,38.53142977]
[1749442938152,31.3232402,151.47,151.41,8.17653114]
[1749442938468,12.53142977,151.46,151.42,12.53142977]
[1749442938831,12.53142977,151.47,151.43,12.53142977]
[1749442939263,12.53142977,151.45,151.41,12.53142977]
[1749442940655,19.13446458,151.45,151.41,12.53142977]
[1749442940958,12.53142977,151.42,151.38,12.53142977]
[1749442942083,12.53142977,151.42,151.37,8.25392807]
[1749442942286,18.79181043,151.45,151.41,12.53142977]
[1749442942463,18.79181043,151.45,151.37,8.25392807]
[1749442942464,18.64964886,151.46,151.43,12.53142977]
[1749442942848,12.53142977,151.45,151.41,12.53142977]
[1749442943462,12.53142977,151.45,151.4,38.53142977]
[1749442943663,12.53142977,151.45,151.41,12.53142977]
[1749442943874,31.18107863,151.46,151.41,19.13593239]
[1749442944349,31.18107863,151.46,151.42,12.53142977]
[1749442945657,22.73142977,151.47,151.42,12.53142977]
[1749442946077,22.73142977,151.47,151.43,12.53142977]
[1749442946276,12.53142977,151.46,151.42,12.53142977]
[1749442947170,29.33346248,151.47,151.42,12.53142977]
[1749442947472,29.33346248,151.47,151.42,19.1355008]
[1749442948467,22.73142977,151.47,151.42,19.1355008]
[1749442948975,22.73142977,151.47,151.43,12.53142977]
[1749442949173,29.33346147,151.47,151.43,12.53142977]
[1749442951780,10.2,151.47,151.44,12.53142977]
[1749442954954,16.80200408,151.47,151.43,12.53142977]
[1749442955279,29.33343385,151.47,151.43,12.53142977]
[1749442956960,29.33343385,151.47,151.42,12.53142977]
[1749442957865,10.2,151.47,151.42,6.60404857]
[1749442958068,10.2,151.47,151.44,12.53142977]
[1749442958268,10.2,151.47,151.46,12.53142977]
[1749442958573,18.64964886,151.48,151.46,12.53142977]
[1749442959082,32.60080157,151.5,151.47,12.53142977]
[1749442959263,18.64964886,151.49,151.47,12.53142977]
[1749442960464,156.34,151.51,151.44,19.27686656]
[1749442960671,156.34,151.51,151.48,12.53142977]
[1749442961682,162.94032316,151.51,151.48,12.53142977]
[1749442963173,16.84032316,151.51,151.48,12.53142977]
[1749442963571,12.53142977,151.49,151.44,12.53142977]
[1749442963789,12.53142977,151.47,151.43,12.53142977]
[1749442964288,31.18107863,151.48,151.44,12.53142977]
[1749442964694,18.64964886,151.48,151.45,12.53142977]
[1749442965063,52.55142977,151.49,151.45,12.53142977]
[1749442965263,59.15253866,151.49,151.45,12.53142977]
[1749442966392,46.62110889,151.49,151.45,12.53142977]
[1749442967268,46.62110889,151.49,151.46,12.53142977]
[1749442967472,59.15253866,151.49,151.45,12.53142977]
[1749442969493,46.62110889,151.49,151.45,12.53142977]
[1749442970281,59.15253866,151.49,151.45,12.53142977]
[1749442975783,46.62110889,151.49,151.45,12.53142977]
[1749442976177,10.24,151.51,151.48,12.53142977]
[1749442976490,16.84038098,151.51,151.48,12.53142977]
[1749442977073,16.84038098,151.51,151.47,12.53142977]
[1749442977703,31.18107863,151.5,151.46,12.53142977]
[1749442978291,36.10030302,151.5,151.46,12.53142977]
[1749442979185,31.18107863,151.5,151.46,12.53142977]
[1749442980102,19.13252555,151.49,151.45,14.16192977]
[1749442980304,31.18107863,151.48,151.44,12.53142977]
[1749442980494,31.18107863,151.46,151.41,12.53142977]
[1749442980799,31.18107863,151.45,151.4,12.53142977]
[1749442980979,31.18107863,151.45,151.38,56.88576023]
[1749442981299,31.18107863,151.45,151.4,12.53142977]
[1749442981492,17.47005809,151.44,151.4,12.53142977]
[1749442981687,12.53142977,151.43,151.39,12.53142977]
[1749442981889,12.53142977,151.43,151.37,46.64617408]
[1749442982196,12.53142977,151.43,151.39,12.53142977]
[1749442982197,19.13553008,151.43,151.39,12.53142977]
[1749442984195,19.13553008,151.43,151.4,12.53142977]
[1749442984196,6.60410031,151.43,151.4,12.53142977]
[1749442985208,11.53946881,151.44,151.41,12.53142977]
[1749442985713,11.53871702,151.44,151.41,12.53142977]
[1749442985922,24.07014679,151.44,151.4,12.53142977]
[1749442986585,19.1348395,151.44,151.37,0.14216157]
[1749442986797,24.07009647,151.44,151.4,12.53142977]
[1749442987008,24.0700947,151.44,151.4,12.53142977]
[1749442987224,19.1348395,151.44,151.4,12.53142977]
[1749442987510,24.07075462,151.44,151.4,12.53142977]
[1749442987687,19.1348395,151.44,151.4,12.53142977]
[1749442988290,24.06996076,151.44,151.37,6.74841541]
[1749442988593,24.0692101,151.44,151.4,12.53142977]
[1749442989608,12.53142977,151.43,151.39,12.53142977]
[1749442990508,31.18107863,151.42,151.38,38.53142977]
[1749442990809,18.64964886,151.42,151.38,38.53142977]
[1749442991597,6.60458358,151.41,151.38,38.53142977]
[1749442994198,12.53142977,151.4,151.36,14.07112977]
[1749442994505,12.53142977,151.4,151.36,12.53142977]
[1749442994705,12.53142977,151.39,151.35,12.53142977]
[1749442994887,12.53142977,151.38,151.32,1.6457]
[1749442995087,12.53142977,151.38,151.34,12.53142977]
[1749442995590,19.13773572,151.38,151.34,12.53142977]
[1749442996320,50.28,151.41,151.37,12.53142977]
[1749442996609,10.24,151.41,151.39,12.53142977]
[1749442998792,16.84461188,151.41,151.39,12.53142977]
[1749442999190,16.84461188,151.41,151.38,12.53142977]
[1749442999817,31.18107863,151.4,151.36,12.53142977]
[1749443000491,12.53142977,151.39,151.35,12.53142977]
[1749443001714,6.60589245,151.38,151.35,12.53142977]
[1749443002323,19.13704186,151.39,151.35,12.53142977]
[1749443002498,6.60561209,151.39,151.36,12.53142977]
[1749443009934,6.60561209,151.39,151.35,12.53142977]
[1749443011616,6.60561209,151.39,151.36,12.53142977]
[1749443013422,10.24,151.41,151.38,12.53142977]
[1749443013612,10.24,151.41,151.39,12.53142977]
[1749443013804,10.24,151.41,151.38,12.53142977]
[1749443014306,10.24,151.41,151.34,0.14216157]
[1749443014307,29.37625563,151.41,151.37,12.53142977]
[1749443014725,18.64964886,151.4,151.36,12.53142977]
[1749443015303,6.6054561,151.39,151.36,12.53142977]
[1749443015805,25.25476947,151.4,151.37,12.53142977]
[1749443016003,10.24,151.41,151.38,12.53142977]
[1749443017247,16.84476427,151.41,151.38,12.53142977]
[1749443017847,6.60476427,151.41,151.38,12.53142977]
[1749443019317,6.60476427,151.41,151.39,12.53142977]
[1749443022635,11.52834876,151.42,151.4,12.53142977]
[1749443022823,6.60433106,151.42,151.4,12.53142977]
[1749443023022,6.60433106,151.42,151.39,12.53142977]
[1749443023332,11.52834876,151.42,151.39,12.53142977]
[1749443024222,11.528727,151.41,151.39,12.53142977]
[1749443024941,4.9240177,151.41,151.39,12.53142977]
[1749443025114,6.60423198,151.42,151.4,12.53142977]
[1749443025533,32.60387252,151.43,151.4,12.53142977]
[1749443025733,4.9384229,151.42,151.41,12.53142977]
[1749443026938,6.60387252,151.43,151.41,12.53142977]
[1749443027140,10.26,151.44,151.42,12.53142977]
[1749443027323,30.19099655,151.46,151.43,12.53142977]
[1749443027523,30.19099655,151.46,151.44,12.53142977]
[1749443027524,23.58825108,151.45,151.44,12.53142977]
[1749443027719,10.24,151.48,151.44,12.53142977]
[1749443027941,4.93677243,151.47,151.46,12.53142977]
[1749443028344,4.93677243,151.47,151.45,12.53142977]
[1749443028552,16.84166659,151.48,151.45,12.53142977]
[1749443028724,4.93485391,151.47,151.45,12.53142977]
[1749443028924,16.84166659,151.48,151.45,12.53142977]
[1749443029143,4.93512078,151.47,151.45,12.53142977]
[1749443029740,23.58476964,151.47,151.44,12.53142977]
[1749443030333,18.64964886,151.46,151.44,12.53142977]
[1749443030529,23.58476964,151.46,151.43,12.53142977]
[1749443031245,6.60283922,151.45,151.43,12.53142977]
[1749443035016,6.60283922,151.45,151.44,12.53142977]
[1749443037736,6.60283922,151.45,151.43,12.53142977]
[1749443040941,6.60283922,151.45,151.42,12.53142977]
[1749443041550,6.60283922,151.45,151.43,12.53142977]
[1749443042232,6.60283922,151.45,151.39,6.60531246]
[1749443042635,6.60283922,151.45,151.43,12.53142977]
[1749443047070,25.25223513,151.46,151.43,12.53142977]
[1749443049458,25.25223513,151.46,151.44,12.53142977]
[1749443049960,6.60258627,151.46,151.44,12.53142977]
[1749443050350,31.18107863,151.45,151.4,12.53142977]
[1749443050552,12.53142977,151.43,151.38,12.53142977]
[1749443050763,12.53142977,151.43,151.37,1.6206]
[1749443050764,12.53142977,151.42,151.37,12.53142977]
[1749443051061,6.60458358,151.41,151.38,12.53142977]
[1749443051958,6.60432371,151.42,151.39,12.53142977]
[1749443052756,6.60432371,151.42,151.38,12.53142977]
[1749443054247,19.13575348,151.42,151.38,12.53142977]
[1749443057364,24.07087426,151.42,151.38,12.53142977]
[1749443057576,19.13575348,151.42,151.38,12.53142977]
[1749443059177,6.60432371,151.42,151.39,12.53142977]
[1749443060961,6.60432371,151.42,151.34,36.38216157]
[1749443060962,6.60432371,151.42,151.36,6.60654952]
[1749443061162,6.60432371,151.42,151.39,12.53142977]
[1749443061475,19.13575348,151.42,151.36,6.60654952]
[1749443061777,19.13575348,151.42,151.38,12.53142977]
[1749443065340,14.64832037,151.42,151.38,8.04399666]
[1749443066001,19.58393124,151.42,151.38,8.04399666]
[1749443066303,19.58393124,151.42,151.35,6.60720185]
[1749443066507,19.58393124,151.42,151.38,8.04399666]
[1749443069299,19.58393124,151.42,151.39,8.04399666]
[1749443069798,19.58534394,151.42,151.39,8.04399666]
[1749443071377,19.58541984,151.42,151.39,8.04399666]
[1749443074587,14.64832037,151.42,151.38,8.04399666]
[1749443076089,4.93797341,151.41,151.38,8.04399666]
[1749443076290,14.64832037,151.42,151.38,8.04399666]
[1749443076907,19.58636939,151.42,151.38,8.04399666]
[1749443078311,11.54237273,151.42,151.38,8.04399666]
[1749443079307,6.60432371,151.42,151.38,8.04399666]
[1749443079512,11.54279158,151.42,151.38,8.04399666]
[1749443080213,11.54279158,151.42,151.39,8.04399666]
[1749443081819,6.60432371,151.42,151.4,8.04399666]
[1749443082115,6.60432371,151.42,151.39,8.04399666]
[1749443082690,11.54442421,151.42,151.39,8.04399666]
[1749443083190,6.60432371,151.42,151.39,8.04399666]
[1749443085387,10.24,151.44,151.41,8.04399666]
[1749443085794,16.84346206,151.44,151.41,8.04399666]
[1749443087608,4.9417209,151.43,151.41,8.04399666]
[1749443087828,16.84346206,151.44,151.41,8.04399666]
[1749443088007,11.54559758,151.43,151.41,8.04399666]
[1749443088216,6.60387668,151.43,151.41,8.04399666]
[1749443089211,6.60387668,151.43,151.4,8.04399666]
[1749443089411,4.94355011,151.42,151.4,8.04399666]
[1749443089725,6.60387668,151.43,151.4,8.04399666]
[1749443089930,4.94352584,151.42,151.4,8.04399666]
[1749443090240,6.60387668,151.43,151.4,8.04399666]
[1749443090410,4.94409538,151.42,151.4,8.04399666]
[1749443090608,6.60387668,151.43,151.4,8.04399666]
[1749443090926,4.94412018,151.42,151.39,8.04399666]
[1749443091128,6.60387668,151.43,151.39,8.04399666]
[1749443091428,6.60458358,151.41,151.39,8.04399666]
[1749443092310,6.60458358,151.41,151.37,8.04399666]
[1749443092510,14.64858024,151.41,151.37,8.04399666]
[1749443092713,4.94625467,151.4,151.36,8.04399666]
[1749443092910,8.04399666,151.4,151.36,8.04399666]
[1749443093326,23.11604253,151.41,151.34,8.04399666]
[1749443093327,14.64988911,151.38,151.34,8.04399666]
[1749443093509,4.94803749,151.37,151.34,8.04399666]
[1749443093718,14.64988911,151.38,151.34,8.04399666]
[1749443094029,4.94811699,151.37,151.34,8.04399666]
[1749443094209,4.94945596,151.36,151.34,8.04399666]
[1749443094404,14.64988911,151.38,151.34,8.04399666]
[1749443094615,6.60676532,151.36,151.34,8.04399666]
[1749443094814,6.6064418,151.37,151.32,26.0]
[1749443095113,26.69364552,151.35,151.31,8.04399666]
[1749443096098,33.30109064,151.35,151.31,8.04399666]
[1749443096516,4.94208741,151.35,151.32,8.04399666]
[1749443096718,4.94208741,151.36,151.33,8.04399666]
[1749443097399,6.60674977,151.37,151.33,12.57715407]
[1749443098322,11.54628434,151.37,151.33,12.57715407]
[1749443099416,24.12343841,151.37,151.33,12.57715407]
[1749443100033,4.93953457,151.37,151.36,12.57715407]
[1749443100237,23.58918343,151.42,151.36,12.57715407]
[1749443100431,4.93953457,151.41,151.39,12.57715407]
[1749443105120,25.2538294,151.42,151.39,12.57715407]